lending/lending_fUSD_20240509
["ID","MTS","AMOUNT","RATE_DAILY","PERIOD"]
[326720747,1715283068155,-500.0,0.00041095,30]
[326720748,1715283068164,-601.92,0.00041095,30]
[326720749,1715283068173,-2829.67,0.00041095,30]
[326720750,1715283068182,-3240.14,0.00041095,30]
[326720751,1715283068192,-4694.18,0.00041095,30]
[326720752,1715283068201,-500.0,0.00041095,30]
[326720753,1715283068211,-500.0,0.00041095,30]
[326720754,1715283068220,-1097.63,0.00041095,30]
[326720755,1715283068230,-500.0,0.00041095,30]
[326720756,1715283068239,-500.0,0.00041095,30]
[326720757,1715283068249,-500.0,0.00041095,30]
[326720758,1715283068259,-3348.1,0.00041095,30]
[326720759,1715283068268,-500.0,0.00041095,30]
[326720760,1715283068278,-500.0,0.00041095,30]
[326720761,1715283068287,-583.56,0.00041095,30]
[326720762,1715283068297,-726.38,0.00041095,30]
[326720763,1715283068306,-641.9,0.00041095,30]
[326720764,1715283068315,-3316.43,0.00041095,21]
[326720765,1715283068324,-500.0,0.00041095,30]
[326720766,1715283068333,-1722.82184484,0.00041095,2]
[326720767,1715283068343,-618.18,0.00041095,30]
[326720768,1715283068353,-4158.17,0.00041095,30]
[326720769,1715283068362,-1847.84,0.00041095,30]
[326720770,1715283068371,-500.0,0.00041095,30]
[326720771,1715283068383,-500.0,0.00041095,30]
[326720772,1715283068392,-2716.08,0.00041095,30]
[326720773,1715283068402,-1050.76,0.00041095,30]
[326720774,1715283068411,-3578.28,0.00041095,30]
[326720775,1715283068421,-500.0,0.00041095,30]
[326720776,1715283068430,-16331.11,0.00041095,30]
[326720777,1715283068440,-500.0,0.00041095,30]
[326720778,1715283068449,-1176.09,0.00041095,30]
[326720779,1715283068458,-900.31,0.00041095,30]
[326720780,1715283068467,-1500.48,0.00041095,30]
[326720781,1715283068477,-501.92057506,0.00041095,30]
[326720782,1715283068486,-500.0,0.00041095,30]
[326720783,1715283068495,-500.0,0.00041095,30]
[326720784,1715283068505,-500.0,0.00041095,30]
[326720785,1715283068514,-500.0,0.00041095,30]
[326720786,1715283068523,-500.0,0.00041095,30]
[326720787,1715283068534,-500.0,0.00041095,30]
[326720788,1715283068545,-3127.9,0.00041095,30]
[326720789,1715283068557,-3609.0,0.00041095,30]
[326720790,1715283068567,-1450.07,0.00041095,30]
[326720791,1715283068577,-2773.58,0.00041095,30]
[326720792,1715283068586,-580.62,0.00041095,30]
[326720793,1715283068595,-265.84526037,0.00041095,30]
[326720794,1715283068604,-2447.12,0.00041095,30]
[326720795,1715283068614,-1100.52,0.00041095,30]
[326720796,1715283068627,-500.0,0.00041095,30]
[326720797,1715283068636,-500.0,0.00041095,30]
[326720798,1715283068645,-4270.3,0.00041095,30]
[326720799,1715283068654,-500.0,0.00041095,30]
[326720800,1715283068664,-534.11,0.00041095,30]
[326720801,1715283068673,-500.0,0.00041095,30]
[326720802,1715283068682,-500.0,0.00041095,30]
[326720803,1715283068692,-954.06,0.00041095,30]
[326720804,1715283068701,-1065.31,0.00041095,30]
[326720805,1715283068710,-500.0,0.00041095,30]
[326720806,1715283068720,-4255.97,0.00041095,30]
[326720807,1715283068729,-500.0,0.00041095,30]
[326720808,1715283068738,-500.0,0.00041095,30]
[326720809,1715283068747,-500.0,0.00041095,30]
[326720810,1715283068757,-3246.7,0.00041095,30]
[326720811,1715283068766,-625.72,0.00041095,30]
[326720812,1715283068775,-656.6,0.00041095,30]
[326720813,1715283068784,-500.0,0.00041095,30]
[326720814,1715283068794,-500.0,0.00041095,30]
[326720815,1715283068803,-500.0,0.00041095,30]
[326720816,1715283068813,-1109.47,0.00041095,30]
[326720817,1715283068822,-732.86,0.00041095,30]
[326720818,1715283068831,-3212.1,0.00041095,30]
[326720819,1715283068841,-500.0,0.00041095,30]
[326720820,1715283068850,-2061.33,0.00041095,30]
[326720821,1715283068859,-500.0,0.00041095,30]
[326720822,1715283068869,-500.0,0.00041095,30]
[326720823,1715283068880,-500.0,0.00041095,30]
[326720824,1715283068891,-2290.77,0.00041095,30]
[326720825,1715283068900,-500.0,0.00041095,30]
[326720826,1715283068909,-500.0,0.00041095,30]
[326720827,1715283068918,-6210.58,0.00041095,30]
[326720828,1715283068927,-500.0,0.00041095,30]
[326720829,1715283068937,-156.99866217,0.00041095,2]
[326720830,1715283068946,-508.1,0.00041095,30]
[326720831,1715283068955,-500.0,0.00041095,30]
[326720832,1715283068964,-2013.92,0.00041095,30]
[326720833,1715283068973,-500.0,0.00041095,30]
[326720834,1715283068982,-500.0,0.00041095,30]
[326720835,1715283068991,-500.0,0.00041095,30]
[326720836,1715283069000,-500.0,0.00041095,30]
[326720837,1715283069009,-5916.02,0.00041095,30]
[326720838,1715283069019,-540.85,0.00041095,30]
[326720839,1715283069028,-502.3842044,0.00041095,30]
[326720840,1715283069037,-1608.16,0.00041095,30]
[326720841,1715283069047,-1433.4,0.00041095,30]
[326720842,1715283069056,-889.979714,0.00041095,14]
[326720843,1715283069066,-500.0,0.00041095,30]
[326720844,1715283069075,-500.0,0.00041095,30]
[326720845,1715283069084,-500.0,0.00041095,31]
[326720846,1715283069092,-1286.52,0.00041095,30]
[326720847,1715283069102,-500.0,0.00041095,32]
[326720848,1715283069111,-500.0,0.00041095,33]
[326720849,1715283069121,-228.856507,0.00041095,14]
[326720850,1715283069131,-500.0,0.00041095,30]
[326720851,1715283069140,-500.0,0.00041095,34]
[326720852,1715283069150,-4237.54,0.00041095,30]
[326720853,1715283069159,-500.0,0.00041095,30]
[326720854,1715283069168,-500.0,0.00041095,35]
[326720855,1715283069177,-500.0,0.00041095,36]
[326720856,1715283069186,-500.0,0.00041095,37]
[326720857,1715283069195,-550.36813714,0.00041095,38]
[326720858,1715283069204,-889.979714,0.00041095,14]
[326720859,1715283069214,-500.0,0.00041095,30]
[326720860,1715283069223,-705.17,0.00041095,30]
[326720861,1715283069233,-500.0,0.00041095,30]
[326720862,1715283069242,-500.0,0.00041095,30]
[326720863,1715283069252,-2362.14,0.00041095,30]
[326720864,1715283069261,-500.0,0.00041095,30]
[326720865,1715283069270,-685.12,0.00041095,30]
[326720866,1715283069280,-932.54,0.00041095,30]
[326720867,1715283069289,-500.0,0.00041095,30]
[326720868,1715283069299,-1866.95674499,0.00041095,2]
[326720869,1715283069308,-54996.41297666,0.00041095,2]
[326720870,1715283069317,-854.23486057,0.00041095,2]
[326720871,1715283069326,-39317.0,0.00041096,4]
[326720872,1715283069336,-157.0,0.00041096,2]
[326720873,1715283069345,-1046.1,0.00041096,2]
[326720874,1715283069355,-351.25,0.00041096,2]
[326720875,1715283069364,-419.95,0.00041096,2]
[326720876,1715283069374,-351.25,0.00041096,2]
[326720877,1715283069384,-351.25,0.00041096,2]
[326720878,1715283069393,-350.81,0.00041096,2]
[326720879,1715283069403,-1003.0,0.000411,2]
[326720880,1715283069413,-232.00247746,0.000411,60]
[326720881,1715283069422,-247.57598513,0.000411,120]
[326720882,1715283069432,-162.23,0.000411,7]
[326720883,1715283069442,-167.08,0.000411,7]
[326720884,1715283069452,-150.94,0.000411,7]
[326720885,1715283069461,-10627.4478,0.00041163,120]
[326720886,1715283069471,-680.92,0.00041232,30]
[326720887,1715283069480,-680.92,0.00041232,30]
[326720888,1715283069490,-1000.0,0.00041233,30]
[326720889,1715283069500,-22913.13376735,0.0004125,2]
[326720890,1715283069510,-1000.0,0.00041273,31]
[326720891,1715283069519,-639.77210098,0.00041358,2]
[326720892,1715283069529,-1238.41434345,0.00041358,2]
[326720893,1715283069544,-151.52419343,0.00041368,60]
[326720894,1715283069553,-500.0,0.00041368,41]
[326720895,1715283069565,-500.0,0.00041368,42]
[326720896,1715283069575,-500.0,0.00041368,43]
[326720897,1715283069584,-500.0,0.00041368,44]
[326720898,1715283069594,-500.0,0.00041368,45]
[326720899,1715283069603,-500.0,0.00041368,46]
[326720900,1715283069613,-500.0,0.00041368,47]
[326720901,1715283069625,-636.1309617,0.00041368,48]
[326720902,1715283069635,-3577.25,0.00041368,38]
[326720903,1715283069644,-3577.25,0.00041368,38]
[326720904,1715283069654,-3577.25,0.00041368,38]
[326720905,1715283069663,-3577.25,0.00041368,38]
[326720906,1715283069672,-3577.25,0.00041368,38]
[326720907,1715283069682,-3577.25,0.00041368,38]
[326720908,1715283069691,-256.16798895,0.00041368,7]
[326720909,1715283069700,-256.16798895,0.00041368,7]
[326720910,1715283069709,-521.60627847,0.00041369,31]
[326720911,1715283069718,-500.0,0.00041369,31]
[326720912,1715283069728,-504.29915121,0.00041369,31]
[326720913,1715283069737,-500.0,0.00041369,31]
[326720914,1715283069747,-500.0,0.00041369,31]
[326720915,1715283069756,-500.0,0.00041369,31]
[326720916,1715283069765,-500.0,0.00041369,31]
[326720917,1715283069774,-500.0,0.00041369,31]
[326720918,1715283069784,-500.0,0.00041369,31]
[326720919,1715283069793,-500.0,0.00041369,31]
[326720920,1715283069803,-500.0,0.00041369,31]
[326720921,1715283069812,-500.0,0.00041369,31]
[326720922,1715283069822,-575.29463195,0.00041369,31]
[326720923,1715283069832,-451.55609907,0.00041369,31]
[326720924,1715283069842,-500.0,0.00041369,31]
[326720925,1715283069852,-500.0,0.00041369,31]
[326720926,1715283069861,-500.0,0.00041369,31]
[326720927,1715283069871,-500.0,0.00041369,31]
[326720928,1715283069881,-500.0,0.00041369,31]
[326720929,1715283069890,-500.0,0.00041369,31]
[326720930,1715283069900,-500.0,0.00041369,31]
[326720931,1715283069909,-500.0,0.00041369,31]
[326720932,1715283069919,-500.0,0.00041369,31]
[326720933,1715283069927,-500.0,0.00041369,31]
[326720934,1715283069934,-500.0,0.00041369,31]
[326720935,1715283069941,-500.0,0.00041369,31]
[326720936,1715283069947,-500.0,0.00041369,31]
[326720937,1715283069954,-500.0,0.00041369,31]
[326720938,1715283069960,-500.0,0.00041369,31]
[326720939,1715283069966,-500.0,0.00041369,31]
[326720940,1715283069975,-500.0,0.00041369,31]
[326720941,1715283069984,-506.5698571,0.00041369,31]
[326720942,1715283069992,-500.0,0.00041369,31]
[326720943,1715283069999,-500.0,0.00041369,31]
[326720944,1715283070009,-500.0,0.00041369,31]
[326720945,1715283070019,-500.0,0.00041369,31]
[326720946,1715283070029,-510.0,0.00041369,120]
[326720947,1715283070039,-500.0,0.00041369,31]
[326720948,1715283070050,-500.0,0.00041369,31]
[326720949,1715283070060,-500.0,0.00041369,31]
[326720950,1715283070070,-415.58203828,0.00041369,31]
[326720951,1715283070082,-500.0,0.00041369,31]
[326720952,1715283070092,-500.0,0.00041369,31]
[326720953,1715283070101,-500.0,0.00041369,31]
[326720954,1715283070111,-500.0,0.00041369,31]
[326720955,1715283070120,-500.0,0.00041369,31]
[326720956,1715283070133,-500.0,0.00041369,31]
[326720957,1715283070143,-500.0,0.00041369,31]
[326720958,1715283070153,-500.0,0.00041369,31]
[326720959,1715283070165,-500.0,0.00041369,31]
[326720960,1715283070175,-500.0,0.00041369,31]
[326720961,1715283070185,-500.0,0.00041369,31]
[326720962,1715283070194,-500.0,0.00041369,31]
[326720963,1715283070204,-500.0,0.00041369,31]
[326720964,1715283070214,-500.0,0.00041369,31]
[326720965,1715283070224,-500.0,0.00041369,31]
[326720966,1715283070234,-500.0,0.00041369,31]
[326720967,1715283070243,-500.0,0.00041369,31]
[326720968,1715283070253,-500.0,0.00041369,31]
[326720969,1715283070262,-500.0,0.00041369,31]
[326720970,1715283070272,-500.0,0.00041369,31]
[326720971,1715283070281,-500.0,0.00041369,31]
[326720972,1715283070291,-500.0,0.00041369,31]
[326720973,1715283070300,-551.92,0.00041369,31]
[326720974,1715283070309,-500.0,0.00041369,31]
[326720975,1715283070318,-573.65,0.00041369,31]
[326720976,1715283070327,-500.0,0.00041369,31]
[326720977,1715283070336,-500.0,0.00041369,31]
[326720978,1715283070346,-500.0,0.00041369,31]
[326720979,1715283070355,-500.0,0.00041369,31]
[326720980,1715283070364,-500.0,0.00041369,31]
[326720981,1715283070373,-500.0,0.00041369,31]
[326720982,1715283070384,-500.0,0.00041369,31]
[326720983,1715283070393,-500.0,0.00041369,31]
[326720984,1715283070403,-500.0,0.00041369,31]
[326720985,1715283070412,-500.0,0.00041369,31]
[326720986,1715283070422,-547.25,0.00041369,31]
[326720987,1715283070431,-500.0,0.00041369,31]
[326720988,1715283070441,-500.0,0.00041369,31]
[326720989,1715283070451,-500.0,0.00041369,31]
[326720990,1715283070460,-500.0,0.00041369,31]
[326720991,1715283070470,-500.0,0.00041369,31]
[326720992,1715283070480,-500.0,0.00041369,31]
[326720993,1715283070489,-500.0,0.00041369,31]
[326720994,1715283070498,-500.0,0.00041369,31]
[326720995,1715283070508,-500.0,0.00041369,31]
[326720996,1715283070517,-859.41,0.00041369,31]
[326720997,1715283070527,-500.0,0.00041369,31]
[326720998,1715283070542,-500.0,0.00041369,31]
[326720999,1715283070554,-500.0,0.00041369,31]
[326721000,1715283070564,-506.51492485,0.00041369,31]
[326721001,1715283070573,-613.99407679,0.00041369,31]
[326721002,1715283070583,-500.0,0.00041369,31]
[326721003,1715283070592,-500.0,0.00041369,31]
[326721004,1715283070601,-500.0,0.00041369,31]
[326721005,1715283070610,-500.0,0.00041369,31]
[326721006,1715283070623,-566.22,0.00041369,31]
[326721007,1715283070634,-500.0,0.00041369,31]
[326721008,1715283070643,-500.0,0.00041369,31]
[326721009,1715283070652,-500.0,0.00041369,31]
[326721010,1715283070662,-500.0,0.00041369,31]
[326721011,1715283070671,-500.0,0.00041369,31]
[326721012,1715283070681,-500.0,0.00041369,31]
[326721013,1715283070690,-500.0,0.00041369,31]
[326721014,1715283070699,-500.0,0.00041369,31]
[326721015,1715283070709,-500.0,0.00041369,31]
[326721016,1715283070718,-500.0,0.00041369,31]
[326721017,1715283070728,-500.0,0.00041369,31]
[326721018,1715283070738,-500.0,0.00041369,31]
[326721019,1715283070747,-500.0,0.00041369,31]
[326721020,1715283070758,-500.0,0.00041369,31]
[326721021,1715283070769,-500.0,0.00041369,31]
[326721022,1715283070779,-500.0,0.00041369,31]
[326721023,1715283070788,-628.24,0.00041369,31]
[326721024,1715283070798,-500.0,0.00041369,31]
[326721025,1715283070807,-500.0,0.00041369,31]
[326721026,1715283070816,-500.0,0.00041369,31]
[326721027,1715283070826,-509.54971266,0.00041369,31]
[326721028,1715283070836,-151.0,0.00041369,14]
[326721029,1715283070846,-500.0,0.00041369,31]
[326721030,1715283070855,-500.0,0.00041369,31]
[326721031,1715283070864,-500.0,0.00041369,31]
[326721032,1715283070874,-500.0,0.00041369,31]
[326721033,1715283070887,-569.90591803,0.00041369,31]
[326721034,1715283070895,-511.98,0.00041369,31]
[326721035,1715283070904,-500.0,0.00041369,31]
[326721036,1715283070914,-500.0,0.00041369,31]
[326721037,1715283070924,-500.0,0.00041369,31]
[326721038,1715283070933,-500.0,0.00041369,31]
[326721039,1715283070942,-500.0,0.00041369,31]
[326721040,1715283070951,-500.0,0.00041369,31]
[326721041,1715283070960,-500.0,0.00041369,31]
[326721042,1715283070970,-500.0,0.00041369,31]
[326721043,1715283070979,-522.10603451,0.00041369,31]
[326721044,1715283070989,-500.0,0.00041369,31]
[326721045,1715283070998,-1000.0,0.00041369,31]
[326721046,1715283071007,-500.0,0.00041369,31]
[326721047,1715283071016,-500.0,0.00041369,31]
[326721048,1715283071026,-500.0,0.00041369,31]
[326721049,1715283071035,-500.0,0.00041369,31]
[326721050,1715283071044,-672.81,0.00041369,31]
[326721051,1715283071053,-500.0,0.00041369,31]
[326721052,1715283071063,-500.0,0.00041369,31]
[326721053,1715283071072,-593.89,0.00041369,31]
[326721054,1715283071081,-500.0,0.00041369,31]
[326721055,1715283071090,-529.47,0.00041369,31]
[326721056,1715283071099,-500.0,0.00041369,31]
[326721057,1715283071109,-500.0,0.00041369,31]
[326721058,1715283071118,-500.0,0.00041369,31]
[326721059,1715283071128,-500.0,0.00041369,31]
[326721060,1715283071137,-500.0,0.00041369,31]
[326721061,1715283071147,-500.0,0.00041369,31]
[326721062,1715283071156,-500.0,0.00041369,31]
[326721063,1715283071165,-531.69,0.00041369,31]
[326721064,1715283071174,-500.0,0.00041369,31]
[326721065,1715283071183,-500.0,0.00041369,31]
[326721066,1715283071193,-561.72,0.00041369,31]
[326721067,1715283071202,-500.0,0.00041369,31]
[326721068,1715283071211,-500.0,0.00041369,31]
[326721069,1715283071220,-500.0,0.00041369,31]
[326721070,1715283071229,-500.0,0.00041369,31]
[326721071,1715283071238,-500.0,0.00041369,31]
[326721072,1715283071248,-500.0,0.00041369,31]
[326721073,1715283071257,-500.0,0.00041369,31]
[326721074,1715283071266,-500.0,0.00041369,31]
[326721075,1715283071276,-500.0,0.00041369,31]
[326721076,1715283071285,-500.0,0.00041369,31]
[326721077,1715283071294,-152.17238817,0.00041369,31]
[326721078,1715283071303,-500.0,0.00041369,31]
[326721079,1715283071312,-831.64,0.00041369,31]
[326721080,1715283071321,-500.0,0.00041369,31]
[326721081,1715283071330,-500.09,0.00041369,2]
[326721082,1715283071339,-500.0,0.00041369,31]
[326721083,1715283071348,-500.0,0.00041369,31]
[326721084,1715283071357,-500.0,0.00041369,31]
[326721085,1715283071366,-500.0,0.00041369,31]
[326721086,1715283071378,-721.05,0.00041369,31]
[326721087,1715283071387,-500.0,0.00041369,31]
[326721088,1715283071396,-500.0,0.00041369,31]
[326721089,1715283071405,-1082.66,0.00041369,31]
[326721090,1715283071414,-731.15,0.00041369,10]
[326721091,1715283071597,-500.0,0.00041369,31]
[326721092,1715283071607,-500.0,0.00041369,31]
[326721093,1715283071616,-509.51833261,0.00041369,31]
[326721094,1715283071627,-500.0,0.00041369,31]
[326721095,1715283071636,-500.0,0.00041369,31]
[326721096,1715283071645,-500.0,0.00041369,31]
[326721097,1715283071654,-500.0,0.00041369,31]
[326721098,1715283071663,-542.08,0.00041369,31]
[326721099,1715283071671,-500.0,0.00041369,31]
[326721100,1715283071680,-500.0,0.00041369,31]
[326721101,1715283071689,-500.0,0.00041369,31]
[326721102,1715283071698,-500.0,0.00041369,31]
[326721103,1715283071707,-500.0,0.00041369,31]
[326721104,1715283071716,-500.0,0.00041369,31]
[326721105,1715283071725,-500.0,0.00041369,31]
[326721106,1715283071735,-502.25335916,0.00041369,31]
[326721107,1715283071743,-500.0,0.00041369,31]
[326721108,1715283071752,-500.0,0.00041369,31]
[326721109,1715283071761,-500.0,0.00041369,31]
[326721110,1715283071770,-500.0,0.00041369,31]
[326721111,1715283071779,-500.0,0.00041369,31]
[326721112,1715283071788,-538.3,0.00041369,31]
[326721113,1715283071797,-500.0,0.00041369,31]
[326721114,1715283071806,-500.0,0.00041369,31]
[326721115,1715283071815,-500.0,0.00041369,31]
[326721116,1715283071824,-753.74,0.00041369,31]
[326721117,1715283071833,-500.0,0.00041369,31]
[326721118,1715283071842,-515.58125183,0.00041369,31]
[326721119,1715283071851,-500.0,0.00041369,31]
[326721120,1715283071860,-500.0,0.00041369,31]
[326721121,1715283071868,-500.0,0.00041369,31]
[326721122,1715283071880,-500.0,0.00041369,31]
[326721123,1715283071889,-500.0,0.00041369,31]
[326721124,1715283071898,-500.0,0.00041369,31]
[326721125,1715283071907,-500.0,0.00041369,31]
[326721126,1715283071915,-500.0,0.00041369,31]
[326721127,1715283071924,-500.0,0.00041369,31]
[326721128,1715283071933,-500.0,0.00041369,31]
[326721129,1715283071943,-500.0,0.00041369,31]
[326721130,1715283071951,-500.0,0.00041369,31]
[326721131,1715283071960,-500.0,0.00041369,31]
[326721132,1715283071969,-500.0,0.00041369,31]
[326721133,1715283071978,-500.0,0.00041369,31]
[326721134,1715283071987,-500.0,0.00041369,31]
[326721135,1715283071997,-822.22,0.00041369,31]
[326721136,1715283072006,-500.0,0.00041369,31]
[326721137,1715283072016,-571.63,0.00041369,31]
[326721138,1715283072025,-500.0,0.00041369,31]
[326721139,1715283072034,-500.0,0.00041369,31]
[326721140,1715283072043,-500.0,0.00041369,31]
[326721141,1715283072053,-500.0,0.00041369,31]
[326721142,1715283072062,-1000.0,0.00041369,60]
[326721143,1715283072071,-500.0,0.00041369,31]
[326721144,1715283072080,-500.0,0.00041369,30]
[326721145,1715283072089,-500.0,0.00041369,31]
[326721146,1715283072098,-500.0,0.00041369,31]
[326721147,1715283072107,-500.0,0.00041369,31]
[326721148,1715283072116,-500.0,0.00041369,31]
[326721149,1715283072125,-500.0,0.00041369,31]
[326721150,1715283072135,-1014.5,0.00041369,31]
[326721151,1715283072144,-500.0,0.00041369,31]
[326721152,1715283072153,-500.0,0.00041369,31]
[326721153,1715283072162,-728.46,0.00041369,31]
[326721154,1715283072171,-500.0,0.00041369,31]
[326721155,1715283072180,-500.0,0.00041369,31]
[326721156,1715283072189,-500.0,0.00041369,31]
[326721157,1715283072198,-500.0,0.00041369,31]
[326721158,1715283072207,-500.0,0.00041369,31]
[326721159,1715283072216,-600.49,0.00041369,31]
[326721160,1715283072225,-500.0,0.00041369,31]
[326721161,1715283072234,-500.0,0.00041369,31]
[326721162,1715283072243,-1500.0,0.00041369,31]
[326721163,1715283072252,-500.0,0.00041369,31]
[326721164,1715283072261,-500.0,0.00041369,31]
[326721165,1715283072270,-500.0,0.00041369,31]
[326721166,1715283072279,-500.0,0.00041369,31]
[326721167,1715283072288,-500.0,0.00041369,31]
[326721168,1715283072296,-500.0,0.00041369,31]
[326721169,1715283072306,-500.0,0.00041369,31]
[326721170,1715283072315,-500.0,0.00041369,31]
[326721171,1715283072324,-584.85642994,0.00041369,31]
[326721172,1715283072333,-500.0,0.00041369,31]
[326721173,1715283072342,-500.0,0.00041369,31]
[326721174,1715283072352,-512.49,0.00041369,31]
[326721175,1715283072361,-500.0,0.00041369,31]
[326721176,1715283072370,-500.0,0.00041369,31]
[326721177,1715283072382,-500.0,0.00041369,31]
[326721178,1715283072391,-500.0,0.00041369,31]
[326721179,1715283072400,-500.0,0.00041369,31]
[326721180,1715283072409,-500.0,0.00041369,31]
[326721181,1715283072419,-500.0,0.00041369,31]
[326721182,1715283072428,-500.0,0.00041369,31]
[326721183,1715283072437,-500.0,0.00041369,31]
[326721184,1715283072446,-500.0,0.00041369,31]
[326721185,1715283072456,-500.0,0.00041369,31]
[326721186,1715283072465,-594.09,0.00041369,31]
[326721187,1715283072474,-500.0,0.00041369,31]
[326721188,1715283072484,-500.0,0.00041369,31]
[326721189,1715283072497,-500.0,0.00041369,31]
[326721190,1715283072514,-500.0,0.00041369,31]
[326721191,1715283072524,-500.0,0.00041369,31]
[326721192,1715283072536,-500.0,0.00041369,31]
[326721193,1715283072555,-500.0,0.00041369,31]
[326721194,1715283072574,-500.0,0.00041369,31]
[326721195,1715283072585,-500.0,0.00041369,31]
[326721196,1715283072595,-500.0,0.00041369,31]
[326721197,1715283072605,-523.23,0.00041369,31]
[326721198,1715283072615,-612.62921156,0.00041369,31]
[326721199,1715283072624,-500.0,0.00041369,31]
[326721200,1715283072637,-500.0,0.00041369,31]
[326721201,1715283072648,-500.0,0.00041369,31]
[326721202,1715283072657,-500.0,0.00041369,31]
[326721203,1715283072666,-500.0,0.00041369,31]
[326721204,1715283072676,-500.0,0.00041369,31]
[326721205,1715283072686,-500.0,0.00041369,31]
[326721206,1715283072695,-500.0,0.00041369,31]
[326721207,1715283072706,-500.0,0.00041369,31]
[326721208,1715283072715,-500.0,0.00041369,31]
[326721209,1715283072726,-500.0,0.00041369,31]
[326721210,1715283072737,-500.0,0.00041369,31]
[326721211,1715283072748,-500.0,0.00041369,31]
[326721212,1715283072758,-500.0,0.00041369,31]
[326721213,1715283072767,-667.75,0.00041369,31]
[326721214,1715283072777,-500.0,0.00041369,31]
[326721215,1715283072786,-500.0,0.00041369,31]
[326721216,1715283072797,-500.0,0.00041369,31]
[326721217,1715283072806,-500.0,0.00041369,31]
[326721218,1715283072815,-500.0,0.00041369,31]
[326721219,1715283072825,-500.0,0.00041369,31]
[326721220,1715283072835,-500.0,0.00041369,31]
[326721221,1715283072844,-500.0,0.00041369,31]
[326721222,1715283072855,-500.0,0.00041369,31]
[326721223,1715283072866,-975.18,0.00041369,31]
[326721224,1715283072877,-542.56,0.00041369,31]
[326721225,1715283072888,-500.0,0.00041369,31]
[326721226,1715283072898,-500.0,0.00041369,31]
[326721227,1715283072908,-527.87,0.00041369,31]
[326721228,1715283072919,-500.0,0.00041369,31]
[326721229,1715283072930,-500.0,0.00041369,31]
[326721230,1715283072940,-500.0,0.00041369,31]
[326721231,1715283072951,-500.0,0.00041369,2]
[326721232,1715283072960,-500.0,0.00041369,31]
[326721233,1715283072969,-628.55,0.00041369,31]
[326721234,1715283072979,-500.0,0.00041369,31]
[326721235,1715283072989,-934.46,0.00041369,31]
[326721236,1715283072998,-500.0,0.00041369,31]
[326721237,1715283073008,-500.0,0.00041369,31]
[326721238,1715283073017,-899.77,0.00041369,31]
[326721239,1715283073028,-500.0,0.00041369,31]
[326721240,1715283073038,-500.0,0.00041369,31]
[326721241,1715283073049,-717.0,0.00041369,31]
[326721242,1715283073059,-500.0,0.00041369,31]
[326721243,1715283073071,-500.0,0.00041369,31]
[326721244,1715283073081,-500.0,0.00041369,31]
[326721245,1715283073090,-500.0,0.00041369,31]
[326721246,1715283073100,-505.49110981,0.00041369,31]